bitfinex-derivatives/quotes_BTCF0:USTF0_20250720
["timestamp","ask_amount","ask_price","bid_price","bid_amount"]
[1752980950997,1.14968823,118130.0,118120.0,0.54264328]
[1752980957901,1.14968823,118130.0,118120.0,0.18184328]
[1752980960904,1.10709272,118130.0,118120.0,0.18184328]
[1752980961103,1.10709272,118130.0,118120.0,0.22045328]
[1752980961507,1.10709272,118130.0,118120.0,0.20436328]
[1752980961705,1.10709272,118130.0,118120.0,0.18184328]
[1752980962004,1.10709272,118130.0,118120.0,0.34821116]
[1752980962202,1.10709272,118130.0,118120.0,0.36472116]
[1752980962804,1.10709272,118130.0,118120.0,0.36704116]
[1752980963204,1.10709272,118130.0,118120.0,0.72784116]
[1752980967507,1.2348506,118130.0,118120.0,0.18184328]
[1752980968910,1.2348506,118130.0,118120.0,0.01261578]
[1752980970113,1.10709272,118130.0,118120.0,0.01261578]
[1752980970312,0.97933484,118130.0,118120.0,0.18184328]
[1752980970512,1.10709272,118130.0,118120.0,0.18184328]
[1752980971012,1.10709272,118130.0,118120.0,0.20436328]
[1752980972007,1.10709272,118130.0,118120.0,0.33212116]
[1752980973011,1.10709272,118130.0,118120.0,0.22045328]
[1752980973311,1.10709272,118130.0,118120.0,0.34821116]
[1752980973912,1.08935452,118130.0,118120.0,0.34821116]
[1752980974113,1.10716811,118130.0,118120.0,0.36472116]
[1752980974612,1.10716811,118130.0,118120.0,0.72552116]
[1752980978215,0.97941023,118130.0,118120.0,0.72552116]
[1752980978408,1.10716811,118130.0,118120.0,0.72784116]
[1752980978714,1.10716811,118130.0,118120.0,0.75601116]
[1752980979616,1.10716811,118130.0,118120.0,0.75105116]
[1752980981011,1.10716811,118130.0,118120.0,0.75601116]
[1752980981316,1.10716811,118130.0,118120.0,0.75105116]
[1752980981615,0.52636811,118130.0,118120.0,0.72784116]
[1752980981817,1.10696811,118130.0,118120.0,0.72784116]
[1752980985924,1.10696811,118130.0,118120.0,0.60008328]
[1752980986223,1.10696811,118130.0,118120.0,0.36704116]
[1752980987723,1.10696811,118130.0,118120.0,0.23928328]
[1752980988018,1.10696811,118130.0,118120.0,0.36704116]
[1752980988221,1.10696811,118130.0,118120.0,0.07005578]
[1752980988422,1.10696811,118130.0,118120.0,0.23928308]
[1752980988924,1.10696811,118130.0,118120.0,0.07005578]
[1752980989725,1.46776811,118130.0,118120.0,0.05122578]
[1752980990417,1.59552599,118130.0,118120.0,0.03513578]
[1752980990616,1.46776811,118130.0,118120.0,0.01261578]
[1752980990815,1.59552599,118130.0,118120.0,0.01261578]
[1752980991316,1.46776811,118130.0,118120.0,0.01261578]
[1752980991718,1.59552599,118130.0,118120.0,0.01261578]
[1752980999233,0.2562873,118120.0,118110.0,0.01685353]
[1752980999436,0.89041665,118120.0,118110.0,0.01685353]
[1752981000235,0.222506,118100.0,118090.0,0.73007009]
[1752981000429,0.96463388,118100.0,118090.0,0.69007359]
[1752981000738,0.96463388,118100.0,118090.0,0.75007359]
[1752981001136,0.96463388,118100.0,118090.0,0.90098147]
[1752981001439,0.96463388,118100.0,118090.0,0.84021618]
[1752981001742,0.96463388,118100.0,118090.0,0.84866417]
[1752981002238,0.96463388,118100.0,118090.0,0.85266417]
[1752981002438,0.96463388,118100.0,118090.0,0.85766417]
[1752981002639,0.96463388,118100.0,118090.0,0.86251417]
[1752981005241,1.09051732,118100.0,118090.0,0.86251417]
[1752981005737,0.96275944,118100.0,118090.0,0.86251417]
[1752981005937,1.09051732,118100.0,118090.0,0.86251417]
[1752981011736,1.09051732,118100.0,118090.0,0.50171417]
[1752981011937,1.09051732,118100.0,118090.0,0.73475629]
[1752981012138,1.09051732,118100.0,118090.0,0.80251417]
[1752981023249,0.50995732,118100.0,118090.0,0.80251417]
[1752981023448,1.09051732,118100.0,118090.0,0.80251417]
[1752981025944,0.50995732,118100.0,118090.0,0.80251417]
[1752981026150,0.93916934,118100.0,118090.0,0.80251417]
[1752981027348,0.35860934,118100.0,118090.0,0.80251417]
[1752981027547,0.93912934,118100.0,118090.0,0.80251417]
[1752981028249,0.35860934,118100.0,118090.0,0.80251417]
[1752981028451,0.93912934,118100.0,118090.0,0.80251417]
[1752981028650,0.35860934,118100.0,118090.0,0.80251417]
[1752981028949,0.93912934,118100.0,118090.0,0.80251417]
[1752981029149,0.96240934,118100.0,118090.0,0.80251417]
[1752981029350,0.38188934,118100.0,118090.0,0.86327946]
[1752981029553,0.96240934,118100.0,118090.0,0.86327946]
[1752981030148,1.09016722,118100.0,118090.0,0.86327946]
[1752981033249,1.09016722,118100.0,118090.0,0.73552158]
[1752981033449,1.09016722,118100.0,118090.0,0.79766417]
[1752981034453,1.2179251,118100.0,118090.0,0.79766417]
[1752981035353,1.09016722,118100.0,118090.0,0.79766417]
[1752981035555,0.50964722,118100.0,118090.0,0.79766417]
[1752981035756,1.09012722,118100.0,118090.0,0.79766417]
[1752981035952,1.2178851,118100.0,118090.0,0.79766417]
[1752981036454,1.09012722,118100.0,118090.0,0.79766417]
[1752981037255,1.09012722,118100.0,118090.0,0.80245417]
[1752981038856,1.09012722,118100.0,118090.0,0.79766417]
[1752981039056,1.09012722,118100.0,118090.0,0.77451417]
[1752981039359,0.50964722,118100.0,118090.0,0.77451417]
[1752981039557,1.09012722,118100.0,118090.0,0.77451417]
[1752981040259,0.34259934,118100.0,118090.0,0.80362417]
[1752981040453,1.08933722,118100.0,118090.0,0.80362417]
[1752981041659,1.08933722,118100.0,118090.0,0.67586629]
[1752981041957,1.08933722,118100.0,118090.0,0.80362417]
[1752981043258,1.08933722,118100.0,118090.0,0.79883417]
[1752981045862,1.08933722,118100.0,118090.0,0.67107629]
[1752981046063,1.08933722,118100.0,118090.0,0.79883417]
[1752981047562,0.50889722,118100.0,118090.0,0.80362417]
[1752981047861,1.08929722,118100.0,118090.0,0.80362417]
[1752981048467,1.08929722,118100.0,118090.0,0.86438946]
[1752981048763,1.08929722,118100.0,118090.0,0.50358946]
[1752981048965,1.08929722,118100.0,118090.0,0.86438946]
[1752981049156,1.08929722,118100.0,118090.0,0.80362417]
[1752981049360,1.08929722,118100.0,118090.0,0.86438946]
[1752981049762,1.08929722,118100.0,118090.0,0.80362417]
[1752981050270,0.50889722,118100.0,118090.0,0.80362417]
[1752981050469,1.08929722,118100.0,118090.0,0.80362417]
[1752981051969,0.50889722,118100.0,118090.0,0.80362417]
[1752981052169,1.08929722,118100.0,118090.0,0.80362417]
[1752981057370,1.08929722,118100.0,118090.0,0.86438946]
[1752981059971,1.10718266,118100.0,118090.0,0.80362417]
[1752981060967,1.23494054,118100.0,118090.0,0.64675629]
[1752981061169,1.23494054,118100.0,118090.0,0.77451417]
[1752981061377,1.10718266,118100.0,118090.0,0.77451417]
[1752981061570,1.23494054,118100.0,118090.0,0.77451417]
[1752981063272,1.23494054,118100.0,118090.0,0.79853417]
[1752981064975,1.23494054,118100.0,118090.0,0.43773417]
[1752981065174,1.23494054,118100.0,118090.0,0.79853417]
[1752981066374,1.23494054,118100.0,118090.0,0.43773417]
[1752981066573,1.23494054,118100.0,118090.0,0.79853417]
[1752981066979,1.23494054,118100.0,118090.0,0.61296629]
[1752981067570,1.23494054,118100.0,118090.0,0.58982629]
[1752981071077,1.2170551,118100.0,118090.0,0.61280629]
[1752981074679,1.23496287,118100.0,118090.0,0.61280629]
[1752981077885,0.97944711,118100.0,118090.0,0.61280629]
[1752981078083,1.23496287,118100.0,118090.0,0.61280629]
[1752981078676,1.23496287,118100.0,118090.0,0.58982629]
[1752981079384,1.23496287,118100.0,118090.0,0.61280629]
[1752981080483,1.23496287,118100.0,118090.0,0.25200629]
[1752981081682,1.23496287,118100.0,118090.0,0.04042799]
[1752981081882,1.23496287,118100.0,118090.0,0.18671849]
[1752981082586,1.23496287,118100.0,118090.0,0.20987849]
[1752981083387,1.23496287,118100.0,118090.0,0.22646849]
[1752981084288,1.23496287,118100.0,118090.0,0.20987849]
[1752981090194,0.97944711,118100.0,118090.0,0.20987849]
[1752981090395,1.23496287,118100.0,118090.0,0.20987849]
[1752981090694,1.23496287,118100.0,118090.0,0.22646849]
[1752981094796,1.23496287,118100.0,118090.0,0.05719799]
[1752981095288,1.23496287,118100.0,118090.0,0.01744799]
[1752981096797,1.23496287,118100.0,118090.0,0.18671849]
[1752981097298,1.23496287,118100.0,118090.0,0.01744799]
[1752981100302,1.23496287,118100.0,118090.0,0.18671849]
[1752981104600,1.23496287,118100.0,118090.0,0.20987849]
[1752981106202,1.23496287,118100.0,118090.0,0.04060799]
[1752981106503,1.59576287,118100.0,118090.0,0.04060799]
[1752981107695,1.59576287,118100.0,118090.0,0.01744799]
[1752981114509,1.59576287,118100.0,118090.0,0.18671849]
[1752981115509,1.23496287,118100.0,118090.0,0.18671849]
[1752981116511,1.23496287,118100.0,118090.0,0.21075849]
[1752981120209,1.23496287,118100.0,118090.0,0.04148799]
[1752981120411,1.23496287,118100.0,118090.0,0.01744799]
[1752981123814,0.97944711,118100.0,118090.0,0.18671849]
[1752981124117,1.23496287,118100.0,118090.0,0.18671849]
[1752981125016,1.23496287,118100.0,118090.0,0.21075849]
[1752981128220,1.23496287,118100.0,118090.0,0.18671849]
[1752981128720,0.97944711,118100.0,118090.0,0.21075849]
[1752981129118,1.23496287,118100.0,118090.0,0.22625849]
[1752981129520,1.23496287,118100.0,118090.0,0.35401637]
[1752981130121,1.23496287,118100.0,118090.0,0.36903637]
[1752981131520,1.23452287,118100.0,118090.0,0.36903637]
[1752981132724,1.23452287,118100.0,118090.0,0.72983637]
[1752981133219,0.39904711,118100.0,118090.0,0.75679637]
[1752981133424,0.52680499,118100.0,118090.0,0.76131637]
[1752981133621,1.10676499,118100.0,118090.0,0.76131637]
[1752981135027,0.52680519,118100.0,118090.0,0.76131637]
[1752981135227,0.93750909,118100.0,118090.0,0.76131637]
[1752981135728,1.10676519,118100.0,118090.0,0.76131637]
[1752981137732,1.10676519,118100.0,118090.0,1.08131637]
[1752981138232,0.16868121,118100.0,118090.0,1.09131637]
[1752981138429,0.6371953,118100.0,118090.0,0.63355849]
[1752981138727,0.65516778,118100.0,118090.0,0.21075849]
[1752981138929,0.6371953,118100.0,118090.0,0.01744799]
[1752981139331,0.65516454,118100.0,118090.0,0.01744799]
[1752981139723,1.01596454,118100.0,118090.0,0.01744799]
[1752981143630,0.65516454,118100.0,118090.0,0.18671839]
[1752981143835,1.01596454,118100.0,118090.0,0.18671839]
[1752981144039,0.65516454,118100.0,118090.0,0.18671839]
[1752981144230,1.01596454,118100.0,118090.0,0.18671839]
[1752981145137,0.65516454,118100.0,118090.0,0.18671839]
[1752981145637,1.01596454,118100.0,118090.0,0.18671839]
[1752981146336,1.01596454,118100.0,118090.0,0.01744799]
[1752981149842,0.65516454,118100.0,118090.0,0.01744799]
[1752981150532,1.01596454,118100.0,118090.0,0.01744799]
[1752981157540,1.01556749,118100.0,118090.0,0.01744799]
[1752981161444,0.65476749,118100.0,118090.0,0.18671839]
[1752981162043,1.01556749,118100.0,118090.0,0.18671839]
[1752981162343,1.01556749,118100.0,118090.0,0.01744799]
[1752981162543,0.76005173,118100.0,118090.0,0.18671839]
[1752981162743,1.01556749,118100.0,118090.0,0.18671839]
[1752981162944,0.65476749,118100.0,118090.0,0.18671839]
[1752981163143,1.01556749,118100.0,118090.0,0.18671839]
[1752981163348,1.01556749,118100.0,118090.0,0.01744799]
[1752981163548,0.76005173,118100.0,118090.0,0.18671839]
[1752981163848,1.01556749,118100.0,118090.0,0.18671839]
[1752981164249,0.65476749,118100.0,118090.0,0.18671839]
[1752981167159,0.39925173,118100.0,118090.0,0.18671839]
[1752981167359,0.65476749,118100.0,118090.0,0.18671839]
[1752981167555,0.65476749,118100.0,118090.0,0.21110839]
[1752981168160,0.39925173,118100.0,118090.0,0.21110839]
[1752981168459,0.65476749,118100.0,118090.0,0.21110839]
[1752981169758,0.65476749,118100.0,118090.0,0.04183799]
[1752981169957,0.65476749,118100.0,118090.0,0.01744799]
[1752981177367,0.65475126,118100.0,118090.0,0.01744799]
[1752981180263,0.3992355,118100.0,118090.0,0.01744799]
[1752981180465,0.65475126,118100.0,118090.0,0.01744799]
[1752981182870,0.3992355,118100.0,118090.0,0.01744799]
[1752981183070,0.65475126,118100.0,118090.0,0.01744799]
[1752981186770,1.01555126,118100.0,118090.0,0.01744799]
[1752981196878,0.65475126,118100.0,118090.0,0.01744799]
[1752981200281,0.65512556,118100.0,118090.0,0.01744799]
[1752981201482,1.23512556,118100.0,118090.0,0.20931839]
[1752981201782,1.23512556,118100.0,118090.0,0.05662799]
[1752981204681,1.23512556,118100.0,118090.0,0.04004799]
[1752981205683,1.23512556,118100.0,118090.0,0.01744799]
[1752981210589,1.23512556,118100.0,118090.0,0.18671839]
[1752981214696,0.3996098,118100.0,118090.0,0.18671839]
[1752981214892,1.23508556,118100.0,118090.0,0.20931839]
[1752981215898,0.65512556,118100.0,118090.0,0.20931839]
[1752981216099,1.23508556,118100.0,118090.0,0.20931839]
[1752981218202,1.23508556,118100.0,118090.0,0.04004799]
[1752981218402,1.23508556,118100.0,118090.0,0.20931839]
[1752981219202,0.9795698,118100.0,118090.0,0.20931839]
[1752981219502,1.23508556,118100.0,118090.0,0.20931839]
[1752981221799,0.65512556,118100.0,118090.0,0.57011839]
[1752981222004,1.23508556,118100.0,118090.0,0.75728627]
[1752981222399,1.10732768,118100.0,118090.0,0.62952839]
[1752981222600,1.10732768,118100.0,118090.0,0.75728627]
[1752981223106,1.10732768,118100.0,118090.0,0.62952839]
[1752981223605,1.10732768,118100.0,118090.0,0.75728627]
[1752981223807,0.52736768,118100.0,118090.0,0.75728627]
[1752981224003,1.10732768,118100.0,118090.0,0.75728627]
[1752981224305,1.10732768,118100.0,118090.0,0.62952839]
[1752981224706,1.10732768,118100.0,118090.0,0.75728627]
[1752981226605,1.23508556,118100.0,118090.0,0.75728627]
[1752981228105,1.23508556,118100.0,118090.0,0.39648627]
[1752981228405,0.65512556,118100.0,118090.0,0.73336627]
[1752981228600,0.3996098,118100.0,118090.0,0.76227627]
[1752981228810,1.08939742,118100.0,118090.0,0.76227627]
[1752981230008,1.10728424,118100.0,118090.0,0.76227627]
[1752981233104,1.23504212,118100.0,118090.0,0.24251839]
[1752981233310,1.23504212,118100.0,118090.0,0.58669839]
[1752981238115,1.23503955,118100.0,118090.0,0.58669839]
[1752981239122,1.23503955,118100.0,118090.0,0.71445627]
[1752981239323,1.23503955,118100.0,118090.0,0.73048627]
[1752981240225,0.97952379,118100.0,118090.0,0.73048627]
[1752981240526,1.23503955,118100.0,118090.0,0.73048627]
[1752981241724,1.23503955,118100.0,118090.0,0.60272839]
[1752981242826,1.23503955,118100.0,118090.0,0.01744799]
[1752981243930,1.23503955,118100.0,118090.0,0.18671829]
[1752981246729,1.23503955,118100.0,118090.0,0.01744799]
[1752981247022,1.59583955,118100.0,118090.0,0.01744799]
[1752981247226,1.72359743,118100.0,118090.0,0.00744799]
[1752981247423,0.2000747,118080.0,118070.0,0.94733791]
[1752981247618,1.08300046,118080.0,118070.0,1.01245791]
[1752981248124,1.08300046,118080.0,118070.0,1.02100922]
[1752981248326,1.08300046,118080.0,118070.0,0.78100922]
[1752981248727,1.08300046,118080.0,118070.0,0.78700922]
[1752981248931,1.08300046,118080.0,118070.0,0.80328922]
[1752981249231,1.08300046,118080.0,118070.0,0.81128922]
[1752981250229,1.2088839,118080.0,118070.0,0.87205451]
[1752981250829,1.2088839,118080.0,118070.0,0.88808451]
[1752981250830,0.95336814,118080.0,118070.0,0.88808451]
[1752981251030,1.2088839,118080.0,118070.0,0.88808451]
[1752981251930,1.2088839,118080.0,118070.0,0.82731922]
[1752981252334,1.2088839,118080.0,118070.0,0.9550771]
[1752981254132,1.2088839,118080.0,118070.0,0.82731922]
[1752981256133,1.08112602,118080.0,118070.0,0.9550771]
[1752981257730,1.08112602,118080.0,118070.0,0.9776071]
[1752981258129,0.37348814,118080.0,118070.0,0.9776071]
[1752981258429,0.91305814,118080.0,118070.0,1.26837239]
[1752981258931,0.91305814,118080.0,118070.0,0.92837239]
[1752981259126,0.92863814,118080.0,118070.0,1.02837239]
[1752981259534,0.95336814,118080.0,118070.0,1.25837239]
[1752981259735,0.95336814,118080.0,118070.0,1.01837239]
[1752981260635,0.95336814,118080.0,118070.0,0.9576071]
[1752981263939,0.95336814,118080.0,118070.0,1.01837239]
[1752981264741,0.95336814,118080.0,118070.0,0.9576071]
[1752981265643,0.95336814,118080.0,118070.0,0.82984922]
[1752981265843,1.08112602,118080.0,118070.0,0.9576071]
[1752981267045,1.08112602,118080.0,118070.0,1.01837239]
[1752981268645,1.2088839,118080.0,118070.0,0.86808451]
[1752981268840,1.2088839,118080.0,118070.0,0.9350771]
[1752981269042,1.2088839,118080.0,118070.0,0.80731922]
[1752981272045,1.2088839,118080.0,118070.0,0.9350771]
[1752981273246,1.2088839,118080.0,118070.0,0.80731922]
[1752981274848,1.2088839,118080.0,118070.0,0.9350771]
[1752981276447,1.2088439,118080.0,118070.0,0.9350771]
[1752981277148,1.2088439,118080.0,118070.0,0.99584239]
[1752981278348,1.2088439,118080.0,118070.0,1.01938239]
[1752981278550,0.6290039,118080.0,118070.0,1.01938239]
[1752981278849,1.2088039,118080.0,118070.0,1.01938239]
[1752981279449,1.08104602,118080.0,118070.0,1.01938239]
[1752981280052,1.09885895,118080.0,118070.0,0.9586171]
[1752981281350,1.09885895,118080.0,118070.0,0.9350771]
[1752981281649,1.22661683,118080.0,118070.0,0.9350771]
[1752981284051,1.22661683,118080.0,118070.0,0.80731922]
[1752981284453,1.22661683,118080.0,118070.0,0.9350771]
[1752981284752,0.39130107,118080.0,118070.0,0.9350771]
[1752981284951,1.09885895,118080.0,118070.0,0.9350771]
[1752981285843,1.09885895,118080.0,118070.0,0.9586171]
[1752981286043,1.09885895,118080.0,118070.0,0.9350771]
[1752981287457,1.09885895,118080.0,118070.0,0.9586171]
[1752981289258,1.09885895,118080.0,118070.0,0.83085922]
[1752981289457,1.09885895,118080.0,118070.0,0.9586171]
[1752981289656,1.09885895,118080.0,118070.0,0.9350771]
[1752981290058,1.08104602,118080.0,118070.0,0.9350771]
[1752981291153,0.37348814,118080.0,118070.0,0.9598571]
[1752981291359,1.08100602,118080.0,118070.0,0.9598571]
[1752981292559,1.08100602,118080.0,118070.0,0.83209922]
[1752981292763,1.08100602,118080.0,118070.0,0.9598571]
[1752981295061,0.95324814,118080.0,118070.0,0.83209922]
[1752981295559,1.08100602,118080.0,118070.0,0.9598571]
[1752981296261,1.08100602,118080.0,118070.0,1.02062239]
[1752981296761,1.08100602,118080.0,118070.0,0.9598571]
[1752981297062,1.08100602,118080.0,118070.0,1.02062239]
[1752981297763,1.08100602,118080.0,118070.0,0.89286451]
[1752981298061,1.08100602,118080.0,118070.0,1.02062239]
[1752981300665,1.08100602,118080.0,118070.0,0.89286451]
[1752981300864,1.08100602,118080.0,118070.0,1.02062239]
[1752981304070,1.08100602,118080.0,118070.0,0.89286451]
[1752981304269,1.08096602,118080.0,118070.0,0.89286451]
[1752981304474,1.08096602,118080.0,118070.0,1.02062239]
[1752981306071,0.95320814,118080.0,118070.0,1.02062239]
[1752981306271,1.08096602,118080.0,118070.0,1.02062239]
[1752981308874,0.34875814,118080.0,118070.0,0.93062239]
[1752981309174,0.74361344,118080.0,118070.0,1.01062239]
[1752981309576,0.16389344,118080.0,118070.0,1.51034239]
[1752981309776,0.16389344,118080.0,118070.0,1.86034239]
[1752981310180,0.33317814,118080.0,118070.0,1.86034239]
[1752981311179,0.33317814,118080.0,118070.0,1.73258451]
[1752981311375,0.33317814,118080.0,118070.0,1.86034239]
[1752981313185,0.50182602,118080.0,118070.0,1.59030239]
[1752981313383,0.50182602,118080.0,118070.0,1.01062239]
[1752981313681,0.50182602,118080.0,118070.0,1.59030239]
[1752981314184,0.6295839,118080.0,118070.0,1.46254451]
[1752981314988,0.6295839,118080.0,118070.0,1.59030239]
[1752981315681,0.6295839,118080.0,118070.0,1.46254451]
[1752981316483,0.6295839,118080.0,118070.0,1.59030239]
[1752981317088,0.37406814,118080.0,118070.0,1.59030239]
[1752981317289,0.6295839,118080.0,118070.0,1.59030239]
[1752981317492,0.6295839,118080.0,118070.0,1.46254451]
[1752981317988,0.37406814,118080.0,118070.0,1.46254451]
[1752981318191,0.6295839,118080.0,118070.0,1.46254451]
[1752981319085,0.6295839,118080.0,118070.0,1.59206239]
[1752981320492,0.6295839,118080.0,118070.0,1.46430451]
[1752981320784,0.6295839,118080.0,118070.0,1.5312971]
[1752981321183,0.37406814,118080.0,118070.0,1.5312971]
[1752981321486,0.6295839,118080.0,118070.0,1.5312971]
[1752981321686,0.6295839,118080.0,118070.0,1.40353922]
[1752981321687,0.37406814,118080.0,118070.0,1.40353922]
[1752981321986,0.6295839,118080.0,118070.0,1.5312971]
[1752981324194,0.6295839,118080.0,118070.0,1.40353922]
[1752981324393,0.6295839,118080.0,118070.0,1.5312971]
[1752981324589,0.6295839,118080.0,118070.0,1.40353922]
[1752981324796,0.6295839,118080.0,118070.0,1.5312971]
[1752981325194,0.6295839,118080.0,118070.0,1.40353922]
[1752981325584,0.6295839,118080.0,118070.0,1.5312971]
[1752981326096,0.50182602,118080.0,118070.0,1.5312971]
[1752981328897,0.50182602,118080.0,118070.0,1.40353922]
[1752981329397,0.50182602,118080.0,118070.0,1.5312971]
[1752981329697,0.50182602,118080.0,118070.0,1.40353922]
[1752981329895,0.50182602,118080.0,118070.0,1.5312971]
[1752981330197,0.51960987,118080.0,118070.0,1.5312971]
[1752981331593,0.39185199,118080.0,118070.0,1.5312971]
[1752981331798,0.51960987,118080.0,118070.0,1.5312971]
[1752981333097,0.64736775,118080.0,118070.0,0.77977452]
[1752981333292,0.64736775,118080.0,118070.0,1.00081452]
[1752981333497,0.64736775,118080.0,118070.0,1.36161452]
[1752981334886,0.64736763,118080.0,118070.0,1.36161452]
[1752981335090,0.64736763,118080.0,118070.0,0.77977452]
[1752981336703,0.64736763,118080.0,118070.0,0.9075324]
[1752981337794,0.39185187,118080.0,118070.0,0.9075324]
[1752981337996,0.64736763,118080.0,118070.0,0.9075324]
[1752981339301,0.64736763,118080.0,118070.0,0.77977452]
[1752981340092,0.6295839,118080.0,118070.0,0.77977452]
[1752981342403,0.6295839,118080.0,118070.0,0.9075324]
[1752981342804,0.6295839,118080.0,118070.0,0.77977452]
[1752981342998,0.9903839,118080.0,118070.0,0.08573131]
[1752981343199,1.00819831,118080.0,118070.0,0.06970131]
[1752981343505,1.00819831,118080.0,118070.0,0.05342131]
[1752981344004,1.00819831,118080.0,118070.0,0.04742131]
[1752981344205,1.00819831,118080.0,118070.0,0.05142131]
[1752981345006,1.00819831,118080.0,118070.0,0.04342131]
[1752981345205,1.00819831,118080.0,118070.0,0.04742131]
[1752981345711,1.00819831,118080.0,118070.0,0.02337131]
[1752981346108,1.00819831,118080.0,118070.0,0.02110131]
[1752981346304,1.00819831,118080.0,118070.0,0.01655131]
[1752981346509,1.13595619,118080.0,118070.0,0.01655131]
[1752981346704,1.20503839,118080.0,118070.0,0.01655131]
[1752981347411,1.07728051,118080.0,118070.0,0.01655131]
[1752981349510,1.24666451,118080.0,118070.0,0.01655131]
[1752981349711,1.37442239,118080.0,118070.0,0.01655131]
[1752981351112,0.248629,118070.0,118060.0,0.00486]
[1752981351417,1.46339917,118070.0,118060.0,0.00486]
[1752981352317,1.46339917,118070.0,118060.0,0.00986]
[1752981352512,1.20788341,118070.0,118060.0,0.00986]
[1752981352712,1.46339917,118070.0,118060.0,0.00986]
[1752981355223,1.58928261,118070.0,118060.0,0.00986]
[1752981355422,1.58928261,118070.0,118060.0,0.01186]
[1752981356121,1.58928261,118070.0,118060.0,0.03646]
[1752981357323,1.58928261,118070.0,118060.0,0.03887]
[1752981358020,0.97296685,118070.0,118060.0,0.2081833]
[1752981358225,0.50227032,118070.0,118060.0,0.2394133]
[1752981358525,1.08295032,118070.0,118060.0,0.75080118]
[1752981358725,1.08295032,118070.0,118060.0,0.6230433]
[1752981359528,1.08427032,118070.0,118060.0,0.75080118]
[1752981359720,1.08459032,118070.0,118060.0,0.75080118]
[1752981360522,1.08459032,118070.0,118060.0,0.6230433]
[1752981361918,1.10237791,118070.0,118060.0,0.6230433]
[1752981362422,1.10237831,118070.0,118060.0,0.6230433]
[1752981362730,1.08459032,118070.0,118060.0,0.6230433]
[1752981364030,1.10237864,118070.0,118060.0,0.6230433]
[1752981368133,1.12124005,118070.0,118060.0,0.6230433]
[1752981369230,1.12124005,118070.0,118060.0,0.6002133]
[1752981371130,1.12124005,118070.0,118060.0,0.5982133]
[1752981371334,1.12124005,118070.0,118060.0,0.6012133]
[1752981371735,1.12124005,118070.0,118060.0,0.5962133]
[1752981372032,1.12124005,118070.0,118060.0,0.6210433]
[1752981372734,1.12124005,118070.0,118060.0,0.5982133]
[1752981373340,1.12124005,118070.0,118060.0,0.4289]
[1752981373933,1.12124005,118070.0,118060.0,0.5982133]
[1752981374136,1.12124005,118070.0,118060.0,0.4289]
[1752981374137,1.24899793,118070.0,118060.0,0.4289]
[1752981374535,1.12124005,118070.0,118060.0,0.4289]
[1752981375330,1.12124005,118070.0,118060.0,0.5972133]
[1752981375525,1.12124005,118070.0,118060.0,0.5962133]
[1752981375936,1.12124005,118070.0,118060.0,0.6190433]
[1752981376134,0.99348217,118070.0,118060.0,0.6190433]
[1752981376435,1.12124005,118070.0,118060.0,0.74680118]
[1752981377135,1.12124005,118070.0,118060.0,0.6190433]
[1752981377530,0.41116217,118070.0,118060.0,0.74680118]
[1752981377732,1.12260005,118070.0,118060.0,0.74680118]
[1752981378132,1.12264005,118070.0,118060.0,0.74680118]
[1752981378333,1.12264005,118070.0,118060.0,0.6190433]
[1752981378534,1.12264005,118070.0,118060.0,0.74680118]
[1752981379832,1.12264005,118070.0,118060.0,0.6190433]
[1752981380038,0.99488217,118070.0,118060.0,0.74680118]
[1752981380340,1.12264005,118070.0,118060.0,0.74680118]
[1752981382141,1.12368005,118070.0,118060.0,0.74680118]
[1752981382828,0.41116217,118070.0,118060.0,0.74680118]
[1752981383031,0.95644217,118070.0,118060.0,0.87455906]
[1752981385539,0.97300217,118070.0,118060.0,0.87455906]
[1752981385835,0.97300217,118070.0,118060.0,0.6190433]
[1752981386043,1.10076005,118070.0,118060.0,0.74680118]
[1752981386835,0.37184217,118070.0,118060.0,0.87455906]
[1752981387133,0.37184217,118070.0,118060.0,1.25455906]
[1752981387440,0.37184217,118070.0,118060.0,1.83915906]
[1752981390136,0.35405385,118070.0,118060.0,1.83915906]
[1752981390437,0.33784385,118070.0,118060.0,1.62915906]
[1752981390742,0.31404375,118070.0,118060.0,1.83915906]
[1752981391045,0.14474485,118070.0,118060.0,1.83915906]
[1752981391238,0.12588344,118070.0,118060.0,1.89992435]
[1752981392438,0.12588344,118070.0,118060.0,1.83915906]
[1752981393041,0.12588344,118070.0,118060.0,1.5836433]
[1752981393341,0.12588344,118070.0,118060.0,1.83915906]
[1752981393531,0.29518214,118070.0,118060.0,1.89992435]
[1752981394544,0.12588344,118070.0,118060.0,1.89992435]
[1752981394743,0.29518214,118070.0,118060.0,1.89992435]
[1752981394942,0.31869214,118070.0,118060.0,1.89992435]
[1752981395943,0.31869214,118070.0,118060.0,2.26072435]
[1752981401143,0.31869214,118070.0,118060.0,2.55242435]
[1752981402344,0.31869214,118070.0,118060.0,2.29690859]
[1752981402548,0.31869214,118070.0,118060.0,2.55242435]
[1752981404151,0.31869214,118070.0,118060.0,2.29690859]
[1752981404351,0.31869214,118070.0,118060.0,2.55242435]
[1752981408255,0.31869214,118070.0,118060.0,1.71230859]
[1752981408455,0.31869214,118070.0,118060.0,2.55158435]
[1752981412650,0.50167002,118070.0,118060.0,1.84006647]
[1752981412855,0.50167002,118070.0,118060.0,2.42382647]
[1752981413151,0.50167002,118070.0,118060.0,2.04382647]
[1752981413356,0.6294279,118070.0,118060.0,1.10223]
[1752981413662,0.6294279,118070.0,118060.0,0.66277]
[1752981413861,1.2132679,118070.0,118060.0,0.66077]
[1752981414164,1.2152679,118070.0,118060.0,0.65977]
[1752981414364,1.2152679,118070.0,118060.0,0.29897]
[1752981414562,1.2152679,118070.0,118060.0,0.65977]
[1752981414762,1.2162679,118070.0,118060.0,0.65977]
[1752981415064,1.2162679,118070.0,118060.0,0.6525]
[1752981415263,1.2162679,118070.0,118060.0,0.2917]
[1752981415464,1.2162679,118070.0,118060.0,0.29655]
[1752981415661,1.2172679,118070.0,118060.0,0.29655]
[1752981417665,1.08951002,118070.0,118060.0,0.33847]
[1752981417967,0.96175214,118070.0,118060.0,0.33847]
[1752981418264,1.08951002,118070.0,118060.0,0.33847]
[1752981418664,1.08951002,118070.0,118060.0,0.04677]
[1752981418867,1.10730576,118070.0,118060.0,0.04677]
[1752981420668,1.10730576,118070.0,118060.0,0.03155]
[1752981421265,1.23506364,118070.0,118060.0,0.03155]
[1752981421466,1.23506364,118070.0,118060.0,0.00714]
[1752981422667,1.23506364,118070.0,118060.0,0.03155]
[1752981424866,1.10730576,118070.0,118060.0,0.03155]
[1752981426374,1.23506364,118070.0,118060.0,0.03155]
[1752981429174,0.97954788,118070.0,118060.0,0.03155]
[1752981429374,1.10730576,118070.0,118060.0,0.03155]
[1752981430175,1.08951002,118070.0,118060.0,0.03155]
[1752981431474,1.2172679,118070.0,118060.0,0.03155]
[1752981432273,1.08951002,118070.0,118060.0,0.03155]
[1752981433478,1.2172679,118070.0,118060.0,0.03155]
[1752981434474,1.23522035,118070.0,118060.0,0.00714]
[1752981435074,1.23522035,118070.0,118060.0,0.00485]
[1752981435977,1.59602035,118070.0,118060.0,0.00485]
[1752981436176,1.5780679,118070.0,118060.0,0.00485]
[1752981436373,1.59602187,118070.0,118060.0,0.00485]